[Event "European Online Club-ch-A 2021"]
[Site "Online"]
[Date "2021.03.27"]
[Round "9.7"]
[White "Babiy, Igor"]
[Black "Kovacs, Gabor"]
[Result "1-0"]
[ECO "E05"]
[WhiteElo "2241"]
[BlackElo "2455"]
[Annotator "ChessBase"]
[PlyCount "89"]
[EventDate "2021.03.27"]
[EventType "team-tourn"]
[EventCountry "NET"]
[SourceTitle "playchess.com"]
[Source "ChessBase"]
[SourceQuality "1"]
[TimeControl "900+5"]

1. Nf3 {[%emt 0:00:00]} d5 {[%emt 0:00:04]} 2. c4 {[%emt 0:00:02]} e6 {[%emt 0:00:02]} 3. g3 {[%emt 0:00:02]} Nf6 {[%emt 0:00:02]} 4. Bg2 {[%emt 0:00:02]} Be7 {[%emt 0:00:02]} 5. O-O {[%emt 0:00:01]} O-O {[%emt 0:00:01]} 6. d4 {[%emt 0:00:01]} dxc4 {[%emt 0:00:11]} 7. Qc2 {[%emt 0:00:02]} a6 {[%emt 0:00:02]} 8. a4 {[%emt 0:00:02]} Bd7 {[%emt 0:00:04]} 9. Rd1 {[%emt 0:00:03]} Bc6 {[%emt 0:00:05]} 10. Nc3 {[%emt 0:00:02]} Bxf3 {[%emt 0:00:07]} 11. Bxf3 {[%emt 0:00:00]} Nc6 {[%emt 0:00:02]} 12. Bxc6 {[%emt 0:00:02]} bxc6 {[%emt 0:00:00]} 13. a5 {[%emt 0:00:01]} Rb8 {[%emt 0:00:23]} 14. Ra4 {[%emt 0:00:16]} Rb4 {[%emt 0:00:18]} 15. Na2 {[%emt 0:00:02]} Rb5 {[%emt 0:01:01]} 16. Qxc4 {[%emt 0:00:39]} Qd5 {[%emt 0:00:24]} 17. Nc3 {[%emt 0:00:34]} Qxc4 {[%emt 0:00:09]} 18. Rxc4 {[%emt 0:00:00]} Rxa5 {[%emt 0:00:36]} 19. Rxc6 {[%emt 0:00:06]} Rc8 {[%emt 0:04:14]} 20. Bf4 {[%emt 0:00:17]} Ne8 {[%emt 0:00:08]} 21. d5 {[%emt 0:01:29]} exd5 {[%emt 0:00:30]} 22. Nxd5 {[%emt 0:00:03]} Kf8 {[%emt 0:00:27]} 23. b4 {[%emt 0:02:58]} Ra2 {[%emt 0:00:43]} 24. Kf1 {[%emt 0:00:05]} Rd8 {[%emt 0:01:35]} 25. Rd3 {[%emt 0:02:31]} Bd6 {[%emt 0:01:48]} 26. Nxc7 {[%emt 0:02:40]} Bxc7 {[%emt 0:00:04]} 27. Bxc7 {[%emt 0:00:04]} Rxd3 {[%emt 0:01:41]} 28. exd3 {[%emt 0:00:00]} Nxc7 {[%emt 0:00:02]} 29. Rxc7 {[%emt 0:00:02]} a5 {[%emt 0:00:09]} 30. bxa5 {[%emt 0:01:01]} Rxa5 {[%emt 0:00:02]} 31. Ke2 {[%emt 0:00:01]} h5 {[%emt 0:00:07]} 32. h4 {[%emt 0:00:09]} g6 {[%emt 0:00:37]} 33. Ke3 {[%emt 0:00:37]} Ke8 {[%emt 0:01:00]} 34. d4 {[%emt 0:00:20]} Ra1 {[%emt 0:00:18]} 35. Ke4 {[%emt 0:00:39]} Rf1 {[%emt 0:00:12]} 36. Rc2 {[%emt 0:00:08]} Ke7 {[%emt 0:00:13]} 37. Ra2 {[%emt 0:00:04]} Kd6 {[%emt 0:00:16]} 38. Ra6+ {[%emt 0:00:03]} Ke7 {[%emt 0:00:03]} 39. Ra7+ {[%emt 0:00:04]} Kf6 {[%emt 0:00:07]} 40. Ra6+ {[%emt 0:00:19]} Ke7 {[%emt 0:00:02]} 41. Ke3 {[%emt 0:00:02]} Re1+ {[%emt 0:00:07]} 42. Kd2 {[%emt 0:00:02]} Rf1 {[%emt 0:00:03]} 43. Ke2 {[%emt 0:00:02]} Rb1 {[%emt 0:00:02]} 44. Ke3 {[%emt 0:00:20]} Rf1 {[%emt 0:00:06]} 45. d5 {[%emt 0:00:15]} 1-0

[Event "European Online Club-ch-A 2021"]
[Site "Online"]
[Date "2021.03.27"]
[Round "9.8"]
[White "Csonka, Attila Istvan"]
[Black "Hulka, Valentyn"]
[Result "1-0"]
[ECO "B50"]
[WhiteElo "2362"]
[BlackElo "2089"]
[Annotator "NA"]
[PlyCount "100"]
[EventDate "2021.03.27"]
[EventType "team-tourn"]
[EventCountry "NET"]
[SourceTitle "playchess.com"]
[Source "ChessBase"]
[SourceQuality "1"]
[TimeControl "900+5"]

1. e4 {[%emt 0:00:00]} c5 {[%emt 0:00:02]} 2. Nf3 {[%emt 0:00:03]} d6 {[%emt 0:00:01]} 3. d4 {[%emt 0:00:02]} cxd4 {[%emt 0:00:01]} 4. Qxd4 {[%emt 0:00:01]} Nc6 {[%emt 0:00:02]} 5. Bb5 {[%emt 0:00:03]} Bd7 {[%emt 0:00:01]} 6. Qd3 {[%emt 0:00:03]} Nf6 {[%emt 0:00:56]} 7. Nc3 {[%emt 0:00:03]} e6 {[%emt 0:00:18]} 8. Bf4 {[%emt 0:00:25]} a6 {[%emt 0:03:16]} 9. Bxc6 {[%emt 0:00:22]} Bxc6 {[%emt 0:00:03]} 10. O-O {[%emt 0:00:18]} d5 {[%emt 0:00:50]} 11. e5 {[%emt 0:00:05]} Ne4 {[%emt 0:00:07]} 12. Nd4 {[%emt 0:00:05]} Nxc3 {[%emt 0:00:50]} 13. Qxc3 {[%emt 0:00:05]} Qb6 {[%emt 0:00:04]} 14. Rad1 {[%emt 0:00:59]} Rc8 {[%emt 0:02:47]} 15. Rfe1 {[%emt 0:01:09]} Bb4 {[%emt 0:01:18]} 16. Qb3 {[%emt 0:00:12]} Ba5 {[%emt 0:00:02]} 17. c3 {[%emt 0:00:47]} Qxb3 {[%emt 0:00:05]} 18. axb3 {[%emt 0:00:02]} Bb6 {[%emt 0:00:11]} 19. Nf3 {[%emt 0:00:03]} Bd7 {[%emt 0:00:07]} 20. Be3 {[%emt 0:00:03]} Bd8 {[%emt 0:00:23]} 21. Ra1 {[%emt 0:00:27]} f6 {[%emt 0:00:17]} 22. b4 {[%emt 0:00:26]} Kf7 {[%emt 0:00:13]} 23. Bc5 {[%emt 0:00:05]} Bc7 {[%emt 0:00:44]} 24. Re3 {[%emt 0:00:45]} Ra8 {[%emt 0:00:41]} 25. Bd4 {[%emt 0:00:21]} a5 {[%emt 0:00:18]} 26. bxa5 {[%emt 0:00:02]} Bxa5 {[%emt 0:00:03]} 27. g3 {[%emt 0:00:25]} Bc7 {[%emt 0:00:07]} 28. Ree1 {[%emt 0:00:18]} Bb5 {[%emt 0:00:06]} 29. Rad1 {[%emt 0:01:23]} Ra2 {[%emt 0:00:18]} 30. exf6 {[%emt 0:00:05]} gxf6 {[%emt 0:00:59]} 31. Ng5+ {[%emt 0:00:06]} fxg5 {[%emt 0:00:01]} 32. Bxh8 {[%emt 0:00:03]} Bb6 {[%emt 0:00:22]} 33. Rd2 {[%emt 0:00:36]} g4 {[%emt 0:00:14]} 34. h3 {[%emt 0:00:11]} h5 {[%emt 0:00:30]} 35. Bd4 {[%emt 0:00:10]} Bc7 {[%emt 0:00:02]} 36. Kg2 {[%emt 0:00:28]} Bd7 {[%emt 0:00:05]} 37. hxg4 {[%emt 0:00:03]} hxg4 {[%emt 0:00:01]} 38. f3 {[%emt 0:00:02]} Bc6 {[%emt 0:00:12]} 39. fxg4 {[%emt 0:00:04]} e5 {[%emt 0:00:03]} 40. Bxe5 {[%emt 0:01:13]} Bxe5 {[%emt 0:00:15]} 41. Rxe5 {[%emt 0:00:03]} d4+ {[%emt 0:00:01]} 42. Kg1 {[%emt 0:00:02]} dxc3 {[%emt 0:00:19]} 43. Rf2+ {[%emt 0:00:03]} Kg8 {[%emt 0:00:05]} 44. bxc3 {[%emt 0:00:03]} Ra1+ {[%emt 0:00:01]} 45. Rf1 {[%emt 0:00:03]} Ra2 {[%emt 0:00:01]} 46. Rg5+ {[%emt 0:00:38]} Kh7 {[%emt 0:00:07]} 47. Rf6 {[%emt 0:00:03]} Rg2+ {[%emt 0:00:29]} 48. Kf1 {[%emt 0:00:02]} Rxg3 {[%emt 0:00:01]} 49. c4 {[%emt 0:00:14]} Bf3 {[%emt 0:00:36]} 50. Kf2 {[%emt 0:00:37]} Rh3 {[%emt 0:00:07]} 1-0

[Event "European Online Club-ch-A 2021"]
[Site "Online"]
[Date "2021.03.27"]
[Round "9.9"]
[White "Valdes Escobar, Alvaro"]
[Black "Deac, Bogdan-Daniel"]
[Result "0-1"]
[ECO "A33"]
[WhiteElo "2355"]
[BlackElo "2625"]
[Annotator "ChessBase"]
[PlyCount "50"]
[EventDate "2021.03.27"]
[EventType "team-tourn"]
[EventCountry "NET"]
[SourceTitle "playchess.com"]
[Source "ChessBase"]
[SourceQuality "1"]
[TimeControl "900+5"]

1. c4 {[%emt 0:00:00]} c5 {[%emt 0:00:12]} 2. Nf3 {[%emt 0:00:06]} Nc6 {[%emt 0:00:01]} 3. d4 {[%emt 0:00:06]} cxd4 {[%emt 0:00:02]} 4. Nxd4 {[%emt 0:00:02]} Nf6 {[%emt 0:00:01]} 5. Nc3 {[%emt 0:00:04]} e6 {[%emt 0:00:01]} 6. a3 {[%emt 0:00:12]} Bc5 {[%emt 0:00:03]} 7. e3 {[%emt 0:00:25]} O-O {[%emt 0:01:23]} 8. Be2 {[%emt 0:00:31]} d5 {[%emt 0:00:03]} 9. Nf3 {[%emt 0:02:11]} Bd6 {[%emt 0:03:39]} 10. O-O {[%emt 0:01:06]} a6 {[%emt 0:01:44]} 11. Bd2 {[%emt 0:04:29]} dxc4 {[%emt 0:00:38]} 12. Bxc4 {[%emt 0:00:06]} b5 {[%emt 0:00:02]} 13. Be2 {[%emt 0:00:02]} Bb7 {[%emt 0:00:02]} 14. Rc1 {[%emt 0:00:03]} Ne5 {[%emt 0:02:06]} 15. Nxe5 {[%emt 0:01:16]} Bxe5 {[%emt 0:00:03]} 16. h3 {[%emt 0:00:57]} Qd7 {[%emt 0:01:08]} 17. Be1 {[%emt 0:01:34]} Qe7 {[%emt 0:00:23]} 18. Qc2 {[%emt 0:01:19]} Rac8 {[%emt 0:00:35]} 19. Qb1 {[%emt 0:00:02]} Nd7 {[%emt 0:00:55]} 20. f4 {[%emt 0:01:03]} Bf6 {[%emt 0:00:40]} 21. Bf2 {[%emt 0:00:53]} Bxc3 {[%emt 0:01:18]} 22. bxc3 {[%emt 0:00:03]} Qxa3 {[%emt 0:00:02]} 23. c4 {[%emt 0:00:02]} b4 {[%emt 0:00:01]} 24. Qc2 {[%emt 0:00:21]} Nc5 {[%emt 0:00:55]} 25. Ra1 {[%emt 0:00:02]} Be4 {[%emt 0:00:03]} 0-1

[Event "European Online Club-ch-A 2021"]
[Site "Online"]
[Date "2021.03.27"]
[Round "9.10"]
[White "Istratescu, Andrei"]
[Black "Pein, Malcolm"]
[Result "1-0"]
[ECO "B07"]
[WhiteElo "2553"]
[BlackElo "2309"]
[Annotator "ChessBase"]
[PlyCount "81"]
[EventDate "2021.03.27"]
[EventType "team-tourn"]
[EventCountry "NET"]
[SourceTitle "playchess.com"]
[Source "ChessBase"]
[SourceQuality "1"]
[TimeControl "900+5"]

1. e4 {[%emt 0:00:00]} d6 {[%emt 0:00:08]} 2. d4 {[%emt 0:00:03]} Nf6 {[%emt 0:00:04]} 3. f3 {[%emt 0:00:02]} d5 {[%emt 0:00:08]} 4. e5 {[%emt 0:00:03]} Nfd7 {[%emt 0:00:02]} 5. f4 {[%emt 0:00:07]} c5 {[%emt 0:00:02]} 6. c3 {[%emt 0:00:09]} Nc6 {[%emt 0:00:06]} 7. Be3 {[%emt 0:00:08]} cxd4 {[%emt 0:00:12]} 8. cxd4 {[%emt 0:00:02]} Nb6 {[%emt 0:00:01]} 9. Nc3 {[%emt 0:00:04]} Bf5 {[%emt 0:00:05]} 10. Nge2 {[%emt 0:00:52]} Nc4 {[%emt 0:01:33]} 11. Bc1 {[%emt 0:00:03]} Nb4 {[%emt 0:00:16]} 12. Qa4+ {[%emt 0:00:03]} Nc6 {[%emt 0:00:14]} 13. Ng3 {[%emt 0:00:04]} Nb6 {[%emt 0:00:30]} 14. Qd1 {[%emt 0:00:06]} Bd7 {[%emt 0:00:29]} 15. b3 {[%emt 0:01:23]} Rc8 {[%emt 0:01:10]} 16. Bb2 {[%emt 0:00:11]} e6 {[%emt 0:00:29]} 17. Rc1 {[%emt 0:00:09]} h5 {[%emt 0:00:20]} 18. Nge2 {[%emt 0:00:08]} h4 {[%emt 0:00:22]} 19. Ng1 {[%emt 0:00:05]} Be7 {[%emt 0:01:35]} 20. Nf3 {[%emt 0:00:04]} a6 {[%emt 0:00:02]} 21. Bd3 {[%emt 0:00:21]} Na7 {[%emt 0:00:42]} 22. O-O {[%emt 0:00:08]} g6 {[%emt 0:00:19]} 23. Qe2 {[%emt 0:00:21]} Kf8 {[%emt 0:00:17]} 24. g4 {[%emt 0:00:04]} hxg3 {[%emt 0:00:06]} 25. hxg3 {[%emt 0:00:02]} Qe8 {[%emt 0:01:58]} 26. Kg2 {[%emt 0:00:14]} Kg7 {[%emt 0:00:38]} 27. Rh1 {[%emt 0:00:08]} Rxh1 {[%emt 0:00:30]} 28. Rxh1 {[%emt 0:00:03]} Bb4 {[%emt 0:00:02]} 29. Nd1 {[%emt 0:00:05]} Bb5 {[%emt 0:00:12]} 30. Ng5 {[%emt 0:00:03]} Bxd3 {[%emt 0:00:27]} 31. Qxd3 {[%emt 0:00:02]} Qb5 {[%emt 0:00:08]} 32. Qxb5 {[%emt 0:00:03]} Rc2+ {[%emt 0:00:07]} 33. Kf3 {[%emt 0:00:03]} Nxb5 {[%emt 0:00:04]} 34. Rh7+ {[%emt 0:00:09]} Kg8 {[%emt 0:00:03]} 35. Rxf7 {[%emt 0:00:02]} Rd2 {[%emt 0:00:36]} 36. Rxb7 {[%emt 0:00:22]} Rxd1 {[%emt 0:00:16]} 37. Rxb6 {[%emt 0:00:07]} Rd3+ {[%emt 0:00:14]} 38. Kg4 {[%emt 0:00:08]} Be1 {[%emt 0:00:02]} 39. Nf3 {[%emt 0:00:03]} Bc3 {[%emt 0:00:23]} 40. Bxc3 {[%emt 0:00:04]} Rxc3 {[%emt 0:00:01]} 41. Rxa6 {[%emt 0:00:14]} 1-0

[Event "European Online Club-ch-A 2021"]
[Site "Online"]
[Date "2021.03.27"]
[Round "9.11"]
[White "Czopor, Maciej"]
[Black "Marin, Mihail"]
[Result "0-1"]
[ECO "C09"]
[WhiteElo "2239"]
[BlackElo "2502"]
[Annotator "ChessBase"]
[PlyCount "78"]
[EventDate "2021.03.27"]
[EventType "team-tourn"]
[EventCountry "NET"]
[SourceTitle "playchess.com"]
[Source "ChessBase"]
[SourceQuality "1"]
[TimeControl "900+5"]

1. e4 {[%emt 0:00:00]} e6 {[%emt 0:00:03]} 2. d4 {[%emt 0:00:02]} d5 {[%emt 0:00:02]} 3. Nd2 {[%emt 0:00:01]} c5 {[%emt 0:00:03]} 4. exd5 {[%emt 0:00:02]} exd5 {[%emt 0:00:02]} 5. Ngf3 {[%emt 0:00:08]} Nc6 {[%emt 0:00:02]} 6. Bb5 {[%emt 0:00:03]} cxd4 {[%emt 0:00:04]} 7. O-O {[%emt 0:00:15]} Bd6 {[%emt 0:00:05]} 8. Nb3 {[%emt 0:00:27]} Nge7 {[%emt 0:00:04]} 9. Nbxd4 {[%emt 0:00:47]} O-O {[%emt 0:00:09]} 10. c3 {[%emt 0:00:12]} Bg4 {[%emt 0:00:04]} 11. Be2 {[%emt 0:02:08]} Re8 {[%emt 0:00:48]} 12. Bg5 {[%emt 0:00:29]} a6 {[%emt 0:00:10]} 13. Bh4 {[%emt 0:00:11]} Qc7 {[%emt 0:00:02]} 14. Bg3 {[%emt 0:00:01]} Rad8 {[%emt 0:00:14]} 15. Re1 {[%emt 0:00:23]} Ng6 {[%emt 0:00:27]} 16. Qd2 {[%emt 0:02:00]} Na5 {[%emt 0:00:48]} 17. Qg5 {[%emt 0:01:19]} Bc8 {[%emt 0:00:43]} 18. Rad1 {[%emt 0:01:35]} h6 {[%emt 0:00:22]} 19. Qc1 {[%emt 0:00:09]} Nc4 {[%emt 0:01:51]} 20. b3 {[%emt 0:02:50]} Bxg3 {[%emt 0:01:36]} 21. hxg3 {[%emt 0:00:02]} Nd6 {[%emt 0:00:04]} 22. Bd3 {[%emt 0:00:17]} Bg4 {[%emt 0:00:20]} 23. Bxg6 {[%emt 0:00:46]} fxg6 {[%emt 0:00:04]} 24. Rxe8+ {[%emt 0:00:45]} Rxe8 {[%emt 0:00:17]} 25. Qf4 {[%emt 0:00:01]} Re4 {[%emt 0:00:22]} 26. Qd2 {[%emt 0:00:02]} Kh7 {[%emt 0:01:05]} 27. Nc2 {[%emt 0:00:26]} Nb5 {[%emt 0:01:37]} 28. Qxd5 {[%emt 0:01:34]} Nxc3 {[%emt 0:00:10]} 29. Qd3 {[%emt 0:00:19]} Nxd1 {[%emt 0:00:22]} 30. Qxe4 {[%emt 0:00:04]} Bf5 {[%emt 0:00:04]} 31. Qh4 {[%emt 0:00:12]} Qxc2 {[%emt 0:00:23]} 32. g4 {[%emt 0:00:02]} Bd7 {[%emt 0:02:08]} 33. Ng5+ {[%emt 0:00:07]} Kg8 {[%emt 0:00:05]} 34. Nh3 {[%emt 0:00:03]} g5 {[%emt 0:00:22]} 35. Qg3 {[%emt 0:00:03]} Qe4 {[%emt 0:00:32]} 36. Qb8+ {[%emt 0:00:08]} Kh7 {[%emt 0:00:06]} 37. f3 {[%emt 0:00:06]} Qe3+ {[%emt 0:00:09]} 38. Kh2 {[%emt 0:00:02]} Bc6 {[%emt 0:00:05]} 39. Qd6 {[%emt 0:00:07]} Nc3 {[%emt 0:00:16]} 0-1

[Event "European Online Club-ch-A 2021"]
[Site "Online"]
[Date "2021.03.27"]
[Round "9.12"]
[White "Arkell, Keith C"]
[Black "Royal, Shreyas"]
[Result "1/2-1/2"]
[ECO "E63"]
[WhiteElo "2381"]
[BlackElo "2121"]
[Annotator "NA"]
[PlyCount "129"]
[EventDate "2021.03.27"]
[EventType "team-tourn"]
[EventCountry "NET"]
[SourceTitle "playchess.com"]
[Source "ChessBase"]
[SourceQuality "1"]
[TimeControl "900+5"]

1. d4 {[%emt 0:00:00]} Nf6 {[%emt 0:00:05]} 2. Nf3 {[%emt 0:00:08]} g6 {[%emt 0:00:03]} 3. c4 {[%emt 0:00:02]} Bg7 {[%emt 0:00:02]} 4. g3 {[%emt 0:00:01]} d6 {[%emt 0:00:02]} 5. Bg2 {[%emt 0:00:02]} O-O {[%emt 0:00:04]} 6. Nc3 {[%emt 0:00:02]} Nc6 {[%emt 0:00:03]} 7. O-O {[%emt 0:00:02]} a6 {[%emt 0:00:01]} 8. b3 {[%emt 0:00:03]} e5 {[%emt 0:00:58]} 9. dxe5 {[%emt 0:00:04]} dxe5 {[%emt 0:00:02]} 10. Ba3 {[%emt 0:00:03]} Re8 {[%emt 0:04:31]} 11. Qxd8 {[%emt 0:00:10]} Rxd8 {[%emt 0:00:04]} 12. Rad1 {[%emt 0:00:05]} Bf5 {[%emt 0:00:33]} 13. Nd5 {[%emt 0:00:19]} e4 {[%emt 0:01:54]} 14. Nh4 {[%emt 0:07:15]} Nxd5 {[%emt 0:00:17]} 15. cxd5 {[%emt 0:00:05]} Nd4 {[%emt 0:00:03]} 16. e3 {[%emt 0:00:59]} Ne2+ {[%emt 0:00:09]} 17. Kh1 {[%emt 0:00:03]} Nc3 {[%emt 0:00:03]} 18. Nxf5 {[%emt 0:00:24]} gxf5 {[%emt 0:00:06]} 19. Rd2 {[%emt 0:00:25]} Nb5 {[%emt 0:01:26]} 20. Be7 {[%emt 0:00:59]} Rd7 {[%emt 0:00:22]} 21. Bg5 {[%emt 0:00:10]} Bc3 {[%emt 0:01:20]} 22. Rdd1 {[%emt 0:00:08]} Kg7 {[%emt 0:00:25]} 23. a4 {[%emt 0:00:09]} Nd6 {[%emt 0:00:18]} 24. Bf4 {[%emt 0:00:36]} Kf6 {[%emt 0:00:12]} 25. f3 {[%emt 0:00:42]} Kg6 {[%emt 0:00:50]} 26. Bxd6 {[%emt 0:00:11]} exf3 {[%emt 0:00:07]} 27. Rxf3 {[%emt 0:00:10]} Rxd6 {[%emt 0:00:02]} 28. Bh3 {[%emt 0:00:02]} b5 {[%emt 0:00:44]} 29. Bxf5+ {[%emt 0:00:11]} Kg7 {[%emt 0:00:01]} 30. axb5 {[%emt 0:00:20]} axb5 {[%emt 0:00:02]} 31. Rdf1 {[%emt 0:01:18]} b4 {[%emt 0:00:25]} 32. Bd3 {[%emt 0:00:08]} f6 {[%emt 0:00:04]} 33. Bc4 {[%emt 0:00:02]} Re8 {[%emt 0:00:15]} 34. Kg2 {[%emt 0:00:11]} Re7 {[%emt 0:00:11]} 35. R1f2 {[%emt 0:00:08]} c6 {[%emt 0:00:04]} 36. dxc6 {[%emt 0:00:05]} Rxc6 {[%emt 0:00:01]} 37. Ra2 {[%emt 0:00:04]} Rd6 {[%emt 0:00:09]} 38. Kf2 {[%emt 0:00:10]} Rd2+ {[%emt 0:00:13]} 39. Rxd2 {[%emt 0:00:03]} Bxd2 {[%emt 0:00:01]} 40. Ke2 {[%emt 0:00:03]} Bc3 {[%emt 0:00:01]} 41. Rf4 {[%emt 0:00:12]} Rd7 {[%emt 0:00:07]} 42. Rg4+ {[%emt 0:00:05]} Kh6 {[%emt 0:00:03]} 43. Kf3 {[%emt 0:00:06]} Re7 {[%emt 0:00:28]} 44. Bd5 {[%emt 0:00:11]} Bd2 {[%emt 0:00:09]} 45. Be4 {[%emt 0:00:17]} f5 {[%emt 0:00:06]} 46. Bxf5 {[%emt 0:00:05]} Rxe3+ {[%emt 0:00:02]} 47. Kg2 {[%emt 0:00:08]} Rxb3 {[%emt 0:00:34]} 48. Rh4+ {[%emt 0:00:16]} Kg5 {[%emt 0:00:01]} 49. Bxh7 {[%emt 0:00:02]} Rb2 {[%emt 0:00:04]} 50. Kh3 {[%emt 0:00:06]} Be3 {[%emt 0:00:09]} 51. Be4 {[%emt 0:00:26]} b3 {[%emt 0:00:27]} 52. Bf3 {[%emt 0:01:02]} Bg1 {[%emt 0:00:16]} 53. Bg2 {[%emt 0:00:05]} Rd2 {[%emt 0:00:02]} 54. Rb4 {[%emt 0:00:04]} b2 {[%emt 0:00:02]} 55. Rb5+ {[%emt 0:00:03]} Kf6 {[%emt 0:00:06]} 56. Be4 {[%emt 0:00:15]} Rxh2+ {[%emt 0:00:06]} 57. Kg4 {[%emt 0:00:03]} Bd4 {[%emt 0:00:15]} 58. Kf4 {[%emt 0:00:15]} Rf2+ {[%emt 0:00:04]} 59. Kg4 {[%emt 0:00:01]} Ke6 {[%emt 0:00:14]} 60. Bd3 {[%emt 0:00:05]} Rd2 {[%emt 0:00:06]} 61. Bh7 {[%emt 0:00:03]} Bc3 {[%emt 0:00:11]} 62. Kf4 {[%emt 0:00:09]} Rd4+ {[%emt 0:00:06]} 63. Ke3 {[%emt 0:00:04]} Rb4 {[%emt 0:00:03]} 64. Rxb4 {[%emt 0:00:02]} Bxb4 {[%emt 0:00:01]} 65. Bb1 {[%emt 0:00:02]} 1/2-1/2

[Event "European Online Club-ch-A 2021"]
[Site "Online"]
[Date "2021.03.27"]
[Round "9.14"]
[White "Kamsky, Gata"]
[Black "Gurel, Ediz"]
[Result "1-0"]
[ECO "A47"]
[WhiteElo "2665"]
[BlackElo "2168"]
[Annotator "ChessBase"]
[PlyCount "175"]
[EventDate "2021.03.27"]
[EventType "team-tourn"]
[EventCountry "NET"]
[SourceTitle "playchess.com"]
[Source "ChessBase"]
[SourceQuality "1"]
[TimeControl "900+5"]

1. d4 {[%emt 0:00:00]} Nf6 {[%emt 0:00:03]} 2. Nf3 {[%emt 0:00:09]} e6 {[%emt 0:00:02]} 3. Bf4 {[%emt 0:00:03]} c5 {[%emt 0:00:04]} 4. e3 {[%emt 0:00:03]} b6 {[%emt 0:00:02]} 5. Nbd2 {[%emt 0:00:03]} Bb7 {[%emt 0:00:11]} 6. h3 {[%emt 0:00:14]} Be7 {[%emt 0:00:04]} 7. Bd3 {[%emt 0:00:07]} O-O {[%emt 0:00:04]} 8. O-O {[%emt 0:00:03]} d6 {[%emt 0:00:05]} 9. Bh2 {[%emt 0:00:03]} Nbd7 {[%emt 0:00:07]} 10. a4 {[%emt 0:00:05]} a6 {[%emt 0:00:22]} 11. Re1 {[%emt 0:00:16]} Re8 {[%emt 0:00:32]} 12. c3 {[%emt 0:00:11]} Bf8 {[%emt 0:00:06]} 13. e4 {[%emt 0:00:13]} e5 {[%emt 0:00:38]} 14. dxe5 {[%emt 0:00:15]} dxe5 {[%emt 0:00:40]} 15. Qb3 {[%emt 0:00:52]} g6 {[%emt 0:01:19]} 16. Bc4 {[%emt 0:01:21]} Re7 {[%emt 0:00:03]} 17. Ng5 {[%emt 0:00:10]} Qe8 {[%emt 0:00:03]} 18. Rad1 {[%emt 0:00:13]} h6 {[%emt 0:00:28]} 19. Ngf3 {[%emt 0:00:03]} Bg7 {[%emt 0:00:41]} 20. Bf1 {[%emt 0:00:50]} Qb8 {[%emt 0:00:36]} 21. Qc2 {[%emt 0:01:00]} Qc7 {[%emt 0:00:37]} 22. Nc4 {[%emt 0:00:09]} Re6 {[%emt 0:00:13]} 23. Nfd2 {[%emt 0:00:09]} Bc6 {[%emt 0:01:19]} 24. Ne3 {[%emt 0:00:29]} Qb7 {[%emt 0:00:40]} 25. f3 {[%emt 0:01:18]} b5 {[%emt 0:00:36]} 26. axb5 {[%emt 0:00:34]} axb5 {[%emt 0:00:02]} 27. c4 {[%emt 0:00:02]} bxc4 {[%emt 0:00:29]} 28. Nexc4 {[%emt 0:00:30]} Qc7 {[%emt 0:00:58]} 29. Nb1 {[%emt 0:00:04]} Nb6 {[%emt 0:01:10]} 30. Nc3 {[%emt 0:00:10]} Nxc4 {[%emt 0:00:17]} 31. Bxc4 {[%emt 0:00:03]} Ree8 {[%emt 0:00:01]} 32. Kh1 {[%emt 0:00:18]} Rad8 {[%emt 0:00:39]} 33. Bg1 {[%emt 0:00:17]} Bf8 {[%emt 0:00:24]} 34. Be3 {[%emt 0:00:19]} Kg7 {[%emt 0:00:17]} 35. Qf2 {[%emt 0:00:19]} Rd4 {[%emt 0:00:28]} 36. b3 {[%emt 0:00:54]} Red8 {[%emt 0:00:38]} 37. Ra1 {[%emt 0:00:03]} Nh5 {[%emt 0:00:33]} 38. Ne2 {[%emt 0:00:28]} Qb6 {[%emt 0:00:55]} 39. Ra6 {[%emt 0:00:38]} Qb7 {[%emt 0:00:10]} 40. Rea1 {[%emt 0:00:07]} Rd1+ {[%emt 0:00:06]} 41. Kh2 {[%emt 0:00:03]} Rxa1 {[%emt 0:00:02]} 42. Rxa1 {[%emt 0:00:03]} Qb4 {[%emt 0:00:29]} 43. Ra7 {[%emt 0:00:52]} Rd7 {[%emt 0:00:20]} 44. Rxd7 {[%emt 0:00:09]} Bxd7 {[%emt 0:00:01]} 45. g4 {[%emt 0:00:12]} Nf6 {[%emt 0:00:12]} 46. Nc1 {[%emt 0:00:05]} Qc3 {[%emt 0:00:18]} 47. Qd2 {[%emt 0:00:31]} Qxd2+ {[%emt 0:00:03]} 48. Bxd2 {[%emt 0:00:01]} Bc6 {[%emt 0:00:09]} 49. Nd3 {[%emt 0:00:17]} Bd6 {[%emt 0:00:03]} 50. Kg2 {[%emt 0:00:22]} Nd7 {[%emt 0:00:03]} 51. Ba5 {[%emt 0:00:22]} g5 {[%emt 0:00:05]} 52. Bd8 {[%emt 0:01:06]} Nf8 {[%emt 0:00:22]} 53. h4 {[%emt 0:00:04]} f6 {[%emt 0:00:11]} 54. h5 {[%emt 0:00:04]} Nd7 {[%emt 0:00:15]} 55. Ne1 {[%emt 0:00:07]} Nb8 {[%emt 0:00:06]} 56. Nc2 {[%emt 0:00:04]} Bd7 {[%emt 0:00:09]} 57. Ne3 {[%emt 0:00:07]} Nc6 {[%emt 0:00:02]} 58. Bb5 {[%emt 0:00:13]} Nxd8 {[%emt 0:00:04]} 59. Bxd7 {[%emt 0:00:03]} Bf8 {[%emt 0:00:06]} 60. Nf5+ {[%emt 0:00:07]} Kf7 {[%emt 0:00:02]} 61. Bb5 {[%emt 0:00:14]} Nb7 {[%emt 0:00:05]} 62. Bc4+ {[%emt 0:00:03]} Ke8 {[%emt 0:00:01]} 63. Kf1 {[%emt 0:00:07]} Nd6 {[%emt 0:00:03]} 64. Ne3 {[%emt 0:00:02]} Kd7 {[%emt 0:00:06]} 65. Ke2 {[%emt 0:00:01]} Be7 {[%emt 0:00:03]} 66. Kd3 {[%emt 0:00:02]} Bd8 {[%emt 0:00:02]} 67. Nd5 {[%emt 0:00:10]} Kc6 {[%emt 0:00:02]} 68. Ba6 {[%emt 0:00:04]} Ne8 {[%emt 0:00:13]} 69. Ne3 {[%emt 0:00:17]} Nd6 {[%emt 0:00:04]} 70. Kc2 {[%emt 0:00:06]} Kb6 {[%emt 0:00:03]} 71. Bc4 {[%emt 0:00:03]} Kc6 {[%emt 0:00:02]} 72. Kb2 {[%emt 0:00:02]} Ba5 {[%emt 0:00:03]} 73. Nd5 {[%emt 0:00:09]} Bd8 {[%emt 0:00:16]} 74. Ka3 {[%emt 0:00:02]} Nb7 {[%emt 0:00:10]} 75. Ka4 {[%emt 0:00:06]} Nd6 {[%emt 0:00:03]} 76. Ba6 {[%emt 0:00:05]} f5 {[%emt 0:00:07]} 77. gxf5 {[%emt 0:00:40]} Nxf5 {[%emt 0:00:02]} 78. Bb7+ {[%emt 0:00:15]} Kxb7 {[%emt 0:00:03]} 79. exf5 {[%emt 0:00:02]} e4 {[%emt 0:00:12]} 80. fxe4 {[%emt 0:00:02]} g4 {[%emt 0:00:04]} 81. Ne3 {[%emt 0:00:05]} g3 {[%emt 0:00:02]} 82. Kb5 {[%emt 0:00:02]} Bc7 {[%emt 0:00:09]} 83. f6 {[%emt 0:00:16]} Be5 {[%emt 0:00:04]} 84. f7 {[%emt 0:00:03]} Bd6 {[%emt 0:00:02]} 85. Nf5 {[%emt 0:00:02]} Bf8 {[%emt 0:00:10]} 86. Nxg3 {[%emt 0:00:02]} Kc7 {[%emt 0:00:02]} 87. Nf5 {[%emt 0:00:09]} Kd7 {[%emt 0:00:02]} 88. Nh4 {[%emt 0:00:02]} 1-0